Cogmind - Beta 17.1 @@@ ROGUE MODE // 2026.09.08 @ 15:33:15 Player: Fedop Result: Destroyed by H-71 Marshal with Heavy Mass Driver Performance ------------- Evolutions (6) 3000 Regions Visited (12) 2400 Robots Destroyed (124) 620 Value Destroyed (3557) 3557 Prototype IDs (27) 540 Alien Tech Used (0) 0 Bonus (2725) 2725 TOTAL SCORE: 12842 Bonus ------- Follower Combat Kills 2241 Network Hubs Disabled 200 Built Enhanced Grunts 300 A7 Reached Mainframe 300 Friendly Fire -316 Cogmind --------- Core Integrity 0/1150 Matter 268/300 Energy 100/100 System Corruption 72% Temperature Cool (0) Movement Hovering (50) Location -4/Factory Parts ------- > --- POWER (2) -------- (None) > --- PROPULSION (6) --- Cooled Aerolev Unit > --- UTILITY (9) ------ (None) > --- WEAPON (2) ------- (None) > --- INVENTORY (5) ---- Micro Nuclear Core Micro Fission Core Stasis Canceller Advanced Thermal Shield Carbide Saw Peak State ------------ > --- POWER ------------ Light Angular Momentum Engine Light Fission Core > --- PROPULSION ------- Gravmag System Cooled Aerolev Unit Antigrav System Antigrav System Gyrokinetic Inverter Improved Antigrav System > --- UTILITY ---------- Large Storage Unit Advanced Sensor Array Advanced Signal Interpreter Improved Target Analyzer Improved Hacking Suite Improved Hacking Suite Improved Hacking Suite Improved System Shield Improved System Shield > --- WEAPON ----------- Advanced Variable Charge Gun Advanced KE Penetrator > --- INVENTORY -------- Light Angular Momentum Engine Improved Gravmag System Antigrav System Linear Gravjet Matter Compressor Improved Transmission Jammer ECM Suite Reaction Control System Centrium Medium Armor Plating Focal Shield Advanced Thermal Shield Improved Hacking Suite HERF Cannon Tesla Bomb Launcher Heavy Mace [Rating: 110] Favorites ----------- Power Light Angular Momentum Engine Engine Light Angular Momentum Engine Power Core Light Nuclear Core Reactor Particle Reactor Propulsion Light Treads Treads Light Treads Leg Flexi-carbon Leg Wheel Compact Wheel Hover Unit Gravmag Array Flight Unit Cooled Cesium-ion Thruster Utility Large Storage Unit Device Advanced Sensor Array Storage Large Storage Unit Processor Advanced Signal Interpreter Hackware Improved Hacking Suite Protection Improved Light Armor Plating Weapon High-powered Shotgun Energy Gun Medium Laser Energy Cannon Beam Cannon Ballistic Gun High-powered Shotgun Ballistic Cannon Light Cannon Launcher Tesla Bomb Launcher Special Weapon Remote Datajack Impact Weapon Heavy Mace Slashing Weapon Great Axe Piercing Weapon Spear Special Melee Weapon Datajack Build | -11 -10 -9 -9 -8 -7 -6 -5 -5 -5 -5 -5 -4 ------- Run | Yrd Mat Mat Min Mat Fac Fac Fac Ext Cet Arc Hub Fac Slots Evolved 12 | . . 2 . 2 2 2 2 . . . . 2 Power 1 | . . . . . . . . . . . . 1 Propulsion 4 | . . . . 2 . 1 . . . . . 1 Utility 7 | . . 2 . . 2 1 2 . . . . . Weapon . | . . . . . . . . . . . . . Parts Attached 190 | 8 5 16 4 20 5 48 3 28 4 15 5 29 Power 20 | 1 . 1 . 2 . 6 . 2 . 2 1 5 Engine 9 | 1 . 1 . 1 . 2 . 2 . 1 . 1 Core 10 | . . . . 1 . 4 . . . . 1 4 Reactor 1 | . . . . . . . . . . 1 . . Propulsion 57 | 2 . 4 . 9 . 19 . 7 1 6 2 7 Treads 6 | 2 . 3 . . . 1 . . . . . . Leg 13 | . . . . 4 . 1 . 7 1 . . . Wheel 9 | . . 1 . . . 7 . . . . . 1 Hover 25 | . . . . 5 . 7 . . . 6 2 5 Flight 4 | . . . . . . 3 . . . . . 1 Utility 75 | 2 3 7 3 6 4 19 3 8 1 5 2 12 Device 35 | 1 . 3 2 2 1 10 1 6 . 2 . 7 Storage 5 | 1 2 . . . . 1 . . . . . 1 Processor 11 | . . . 1 1 1 5 . . . . . 3 Hackware 14 | . . 2 . 1 2 2 1 . . 3 2 1 Protection 10 | . 1 2 . 2 . 1 1 2 1 . . . Artifact . | . . . . . . . . . . . . . Weapon 38 | 3 2 4 1 3 1 4 . 11 2 2 . 5 Energy Gun 8 | 1 . . . 2 . . . 4 1 . . . Energy Cannon 3 | . 1 . . 1 . . . . . . . 1 Ballistic Gun 10 | 2 . 3 1 . . . . 2 1 1 . . Ballistic Cannon 3 | . 1 . . . . 1 . 1 . . . . Launcher 4 | . . . . . . 1 . 2 . . . 1 Special Weapon 1 | . . . . . . . . 1 . . . . Impact Weapon 1 | . . . . . . . . . . 1 . . Slashing Weapon 6 | . . 1 . . . 2 . . . . . 3 Piercing Weapon 1 | . . . . . 1 . . . . . . . Special Melee Weapon 1 | . . . . . . . . 1 . . . . Unidentified Prototypes 15 | . . . 1 4 . 4 . 1 3 . 1 1 Corrupted Parts 11 | . . . . . . . . 1 2 1 . 7 System Corruption 60 | . . . . . . . . 8 5 5 . 42 Parts Lost 66 | . . 3 3 3 1 19 . 6 2 . 1 28 Power 7 | . . 1 . . . 3 . . . . . 3 Propulsion 22 | . . 1 1 2 . 6 . 1 1 . 1 9 Utility 23 | . . 1 1 . 1 7 . 3 1 . . 9 Weapon 14 | . . . 1 1 . 3 . 2 . . . 7 Highest Loss Streak 15 | . . 2 3 2 1 10 . 3 2 . 1 15 To Critical Strikes . | . . . . . . . . . . . . . Average Backups 13 | 1 8 12 13 14 13 14 14 14 14 14 15 13 Power 1 | . 1 1 1 1 1 1 1 1 1 1 1 . Propulsion 2 | . . . . . . 2 3 5 5 3 3 1 Utility 7 | . 4 6 8 9 9 8 8 4 4 5 8 7 Weapon 3 | . 2 4 3 2 3 2 1 3 4 4 3 3 Tool/Special . | . . . . . . . . . . . . . Unused Backups 43 | . 2 5 . 4 . 15 1 7 1 1 . 7 Power 3 | . . . . 1 . 1 . . . 1 . . Propulsion 8 | . . . . 1 . 4 1 2 . . . . Utility 19 | . . 1 . 1 . 10 . 1 . . . 6 Weapon 13 | . 2 4 . 1 . . . 4 1 . . 1 Tool/Special . | . . . . . . . . . . . . . Average Slot Usage (%) 92 | . 97 93 99 91 80 86 81 92 93 95 99 87 Engine 6 | . 13 9 11 6 7 1 . 4 5 4 4 5 Core 1 | . . . . 2 . 4 5 . . . . 3 Treads 7 | . 28 18 21 1 . . . . . . . . Leg 3 | . . . . 6 . . . 13 17 . . . Wheel 2 | . . 1 . . . 11 . . . . . . Hover 10 | . . . . 25 22 9 17 7 5 24 28 26 Device 15 | . 4 12 21 14 14 14 15 19 23 24 5 5 Storage 7 | . 14 11 11 9 7 6 5 5 5 5 5 4 Processor 7 | . . . 8 5 6 7 11 11 11 11 11 8 Hackware 7 | . . 13 . 4 13 6 16 5 . 2 28 21 Protection 5 | . 9 5 1 1 . 7 1 8 10 6 . . Energy Gun 2 | . 13 . . . . . . 6 5 1 . 1 Ballistic Gun 6 | . 3 11 22 9 . . . 1 . 8 10 5 Ballistic Cannon 1 | . 8 4 . . . . . 1 . . . . Slashing Weapon 2 | . . 1 . 2 1 9 5 . . . . . Peak Build Rating 110 | 7 8 22 24 39 34 70 75 83 90 96 95 110 Average Rating 52 | 5 7 16 22 33 30 51 72 77 87 93 91 91 On Entrance 46 | . 7 8 22 24 21 32 66 71 83 89 86 95 Avg Prop Armor Cover (%) 5 | . . 9 . 4 . 6 . 3 3 3 . 9 Naked Turns . | . . . . . . . . . . . . . Heaviest Build 65 | 13 32 36 38 35 34 46 42 63 62 65 45 51 Greatest Support 74 | 40 40 43 43 48 23 74 55 55 55 52 52 64 Greatest Overweight (x) 8 | 1 . 2 1 4 1 5 . 3 1 1 1 8 Average Overweight (x) . | . . . . . 1 . . . 1 . . . Largest Inventory Capacity 15 | 8 15 15 15 15 15 15 15 15 15 15 15 15 Average Capacity 14 | 7 13 15 15 15 15 15 15 15 15 15 15 14 Most Carried 15 | 3 14 15 14 15 15 15 15 15 15 15 15 15 Average Carried 13 | 1 8 12 13 14 13 14 14 14 14 14 14 13 Final Capacity 15 | 8 15 15 15 15 15 15 15 15 15 15 15 5 Final Carried 15 | 3 11 15 13 15 15 15 15 15 15 15 15 5 Class Distribution -------------------- 39% | Scavenger-Mutant 34% | Mutant 14% | Hacker-Mutant 3% | Wizard-Mutant Dominant Class ---------------- Mutant | -10/Materials Hacker-Mutant | -9/Materials Mutant | -9/Mines Mutant | -8/Materials Hacker-Mutant | -7/Factory Scavenger-Mutant | -6/Factory Hacker-Mutant | -5/Factory Scavenger-Mutant | -5/Extension Scavenger-Mutant | -5/Cetus Scavenger-Mutant | -5/Archives Scavenger-Mutant | -5/Hub_04(d) Scavenger-Mutant | -4/Factory Resources | -11 -10 -9 -9 -8 -7 -6 -5 -5 -5 -5 -5 -4 ----------- Run | Yrd Mat Mat Min Mat Fac Fac Fac Ext Cet Arc Hub Fac Matter Collected 5225 | 235 394 413 189 287 . 1128 . 1136 118 443 140 742 Remotely 10 | . . . . . . 10 . . . . . . Salvage Created 5077 | 52 332 467 32 350 . 1495 . 1256 68 298 . 727 Parts 301 | 8 27 19 6 21 . 83 . 50 4 26 . 57 Haulers Intercepted 8 | . 1 1 . 3 . 3 . . . . . . Recyclers Shooed 9 | . 3 1 . 1 . 3 . 1 . . . . Parts Field Recycled . | . . . . . . . . . . . . . Retrieved Matter . | . . . . . . . . . . . . . Parts Self-Destructed . | . . . . . . . . . . . . . Prevented . | . . . . . . . . . . . . . Parts Restored . | . . . . . . . . . . . . . Kills | -11 -10 -9 -9 -8 -7 -6 -5 -5 -5 -5 -5 -4 ------- Run | Yrd Mat Mat Min Mat Fac Fac Fac Ext Cet Arc Hub Fac Combat Hostiles Destroyed 69 | . 8 8 4 3 . 16 . 14 1 . . 15 Melee 18 | . . . . . . 16 . . . . . 2 Guns 35 | . 5 5 4 3 . . . 10 . . . 8 Cannons 9 | . 3 3 . . . . . 1 . . . 2 AOE 5 | . . . . . . . . 2 1 . . 2 Classes Destroyed 16 | 2 5 3 1 2 . 1 . 1 . . . 1 Worker 9 | 1 1 1 . 2 . 3 . . . . . 1 Builder 5 | . 1 . . . . 3 . 1 . . . . Tunneler 4 | 2 1 . . . . . . . . . . 1 Hauler 8 | . 1 1 . 3 . 3 . . . . . . Recycler 10 | . 2 1 . 1 . 4 . 1 . . . 1 Operator 11 | . . . . 1 . 1 . . . 9 . . Watcher 6 | . 2 2 . 1 . . . 1 . . . . Swarmer 25 | . 8 . 3 . . 11 . . . . . 3 Cutter 8 | . . . . . . . . . . . . 8 Grunt 16 | . . 5 . 1 . . . 9 1 . . . Duelist 1 | . . 1 . . . . . . . . . . Sentry 6 | . . 2 . 1 . . . 2 . . . 1 Demolisher 1 | . . . 1 . . . . . . . . . Hunter 3 | . . . . 1 . 1 . 1 . . . . Programmer 7 | . . . . . . 4 . . . . . 3 Behemoth 1 | . . . . . . . . 1 . . . . Thug 1 | . . . . . . . . 1 . . . . Butcher 1 | . . . . . . . . 1 . . . . Guerrilla 1 | . . . . . . . . 1 . . . . Best Kill Streak 9 | 2 3 4 2 3 . 9 . 4 1 2 . 6 Combat Bots Only 5 | . 3 2 2 1 . 4 . 3 1 . . 5 Max Kills in Single Turn 3 | 1 1 1 1 2 . 1 . 1 1 1 . 3 Gunslinging . | . . . . . . . . . . . . . Exploded 2 | . . . . . . . . 1 1 . . 2 Melee 1 | . . . . . . 1 . . . . . 1 Uniques/NPCs Destroyed . | . . . . . . . . . . . . . Combat | -11 -10 -9 -9 -8 -7 -6 -5 -5 -5 -5 -5 -4 -------- Run | Yrd Mat Mat Min Mat Fac Fac Fac Ext Cet Arc Hub Fac Hostile Shots Fired 823 | . 77 39 28 55 . 184 . 105 39 . 8 288 Missed 275 | . 17 12 8 20 . 53 . 35 16 . 4 110 Hits 548 | . 60 27 20 35 . 131 . 70 23 . 4 178 Melee 72 | . . 1 . . . 9 . . . . . 62 Projectile 476 | . 60 26 20 35 . 122 . 70 23 . 4 116 AOE 15 | . . . 14 . . . . . . . 1 . Critical Strikes 51 | . 1 1 . . . 4 . 6 3 . . 36 Damage Taken 9786 | . 492 390 690 413 95 1897 . 1462 330 . 272 3745 Core 2189 | . 78 40 167 74 . 383 . 176 23 . 20 1228 Absorbed by Shields 152 | . . . . . . . . 8 144 . . . Redirected to Shielding 112 | . . . . . . 39 . 73 . . . . Ignored by Resistances 514 | . . . . . . 261 . 143 110 . . . Regen/Repaired (Parts) 35 | . . . . . 35 . . . . . . . Core Remaining (%) 76 | 100 68 . 48 86 100 54 . . . . 78 . Volleys Fired 298 | 4 55 39 8 26 . . . 101 4 29 8 24 Largest 2 | 2 2 2 2 2 . . . 2 2 2 2 2 Hottest 168 | 70 80 90 50 50 . . . 156 126 155 70 168 Shots Fired 546 | 8 107 78 16 40 . . . 178 5 59 16 39 Gun 437 | 8 76 32 16 40 . . . 157 1 59 16 32 Cannon 100 | . 31 46 . . . . . 18 . . . 5 Launcher 9 | . . . . . . . . 3 4 . . 2 Special . | . . . . . . . . . . . . . Kinetic 350 | 4 52 55 16 40 . . . 85 . 57 16 25 Thermal 179 | 4 55 23 . . . . . 87 1 2 . 7 Explosive 1 | . . . . . . . . . . . . 1 Electromagnetic 16 | . . . . . . . . 6 4 . . 6 Robot Hit Streak 10 | 4 5 8 4 9 . . . 10 1 8 2 4 Robot Miss Streak 11 | 1 7 5 5 4 . . . 4 2 11 2 3 Penetration Max 2 | . . . . . . . . 2 . 1 1 1 Secondary Targets 4 | . 1 1 1 . . . . . . . . 1 Max Gunslinging Chain 1 | . 1 1 1 . . . . . . . . 1 Shots Hit Robots 387 | 6 50 54 8 37 . 62 . 92 1 33 10 34 Core Hits 185 | 3 18 22 5 19 . 32 . 43 4 15 3 21 Critical Kills 15 | . . . . . . . . 7 . 6 . 2 Critical Parts Destroyed 17 | . . . . . . . . 7 . 5 1 4 Critical Strikes 51 | . 2 . . . . 6 . 24 . 11 1 7 Burn 8 | . 2 . . . . . . 6 . . . . Destroy 29 | . . . . . . . . 15 . 11 1 2 Blast 3 | . . . . . . . . 3 . . . . Smash 4 | . . . . . . . . . . . . 4 Sever 6 | . . . . . . 5 . . . . . 1 Impale 1 | . . . . . . 1 . . . . . . Melee Attacks 195 | . . 2 . 10 10 125 3 . . 1 3 41 Impact 37 | . . . . . . . . . . 1 3 33 Slashing 145 | . . 2 . 10 1 121 3 . . . . 8 Piercing 13 | . . . . . 9 4 . . . . . . Sneak Attacks 25 | . . 1 . 2 . 20 . . . 1 . 1 Combat Hostiles . | . . . . . . . . . . . . . Follow-up Attacks 11 | . . . . . . 11 . . . . . . Damage Inflicted 11219 | 80 734 1096 108 793 . 2653 . 2689 407 949 311 1399 Guns 5135 | 80 338 569 108 570 . . . 1722 29 853 311 555 Cannons 1555 | . 396 464 . . . . . 607 . . . 88 Explosions 936 | . . . . . . . . 360 378 . . 198 Melee 3593 | . . 63 . 223 . 2653 . . . 96 . 558 Ramming . | . . . . . . . . . . . . . Kinetic 4646 | 42 455 806 108 570 . . . 1165 . 831 311 358 Thermal 1910 | 38 279 227 . . . . . 1118 29 22 . 197 Explosive 42 | . . . . . . . . . . . . 42 Electromagnetic 1014 | . . . . . . . . 406 378 . . 230 Impact 532 | . . . . . . . . . . 96 . 436 Slashing 2967 | . . 63 . 223 . 2545 . . . . . 136 Piercing 108 | . . . . . . 108 . . . . . . Highest Corruption 72 | . . . . . 3 21 . 8 5 10 1 72 Average Corruption 10 | . . . . . 3 15 . 7 4 6 1 11 Corruption Purged 23 | . . . . . . 5 . 8 . 10 . . Corruption Blocked . | . . . . . . . . . . . . . Effects 163 | . . . . . 2 82 . 40 6 14 . 19 Message Errors 41 | . . . . . 1 24 . 8 1 2 . 5 Matter Fused 36 | . . . . . 1 13 . 11 1 5 . 5 Heat Flow Errors 20 | . . . . . . 13 . 2 1 1 . 3 Energy Discharges 16 | . . . . . . 10 . 3 . 2 . 1 Parts Rejected 2 | . . . . . . . . 1 . . . 1 Parts Fused 1 | . . . . . . 1 . . . . . . Data Loss (minor) 23 | . . . . . . 13 . 5 3 1 . 1 Data Loss (major) 5 | . . . . . . 3 . 1 . . . 1 Misfires 6 | . . . . . . . . 4 . 2 . . Alerts 4 | . . . . . . 1 . 3 . . . . Misdirections 6 | . . . . . . 4 . . . . . 2 Weapon Failures 3 | . . . . . . . . 2 . 1 . . Overload Shots . | . . . . . . . . . . . . . Overflow Damage 577 | . 26 23 . 67 . 190 . 1 24 51 . 195 Projectiles 27 | . 26 . . . . . . 1 . . . . Explosions 24 | . . . . . . . . . 24 . . . Melee 526 | . . 23 . 67 . 190 . . . 51 . 195 Knockbacks 10 | . 6 . . . . . . 2 . 1 . 1 Impact 2 | . . . . . . . . . . 1 . 1 Kinetic 8 | . 6 . . . . . . 2 . . . . Secondary . | . . . . . . . . . . . . . Self-Inflicted Damage 66 | . . . . . . . . . . . . 66 Shots 2 | . . . . . . . . . . . . 2 Rammed . | . . . . . . . . . . . . . Targets Rammed . | . . . . . . . . . . . . . Kicked . | . . . . . . . . . . . . . Crushed . | . . . . . . . . . . . . . Highest Temperature 308 | 18 308 261 . 5 . 275 . 264 149 237 3 256 Average Temperature 82 | 8 88 58 . 2 . 109 . 75 61 104 2 83 Received Heat Transfer 836 | . . 171 . 45 . 72 . 449 90 . 9 . Effects 12 | . 2 . . . . 4 . . . . . 6 Energy Bleed 5 | . 1 . . . . . . . . . . 4 Interference 7 | . 1 . . . . 4 . . . . . 2 Siege Activations . | . . . . . . . . . . . . . Martial Activations . | . . . . . . . . . . . . . Shielding Activations . | . . . . . . . . . . . . . Robots Disrupted 1 | . . . . . . . . . . . . 1 Combat Hostiles 1 | . . . . . . . . . . . . 1 Robots Corrupted 2 | . . . . . . . . 1 . . . 1 Combat Hostiles 2 | . . . . . . . . 1 . . . 1 Parts Fried 8 | . . . . . . . . 2 . 1 . 5 Impact Corruptions 9 | . . . . . . . . . . 2 . 7 Robots Melted . | . . . . . . . . . . . . . Combat Hostiles . | . . . . . . . . . . . . . Parts Melted 4 | . 1 . . . . . . 3 . . . . Heat Transferred 4608 | 111 962 481 . . . . . 2758 37 37 . 222 Parts Sabotaged . | . . . . . . . . . . . . . Parts Stolen . | . . . . . . . . . . . . . Parts Stripped . | . . . . . . . . . . . . . Power Chain Reactions . | . . . . . . . . . . . . . Alert | -11 -10 -9 -9 -8 -7 -6 -5 -5 -5 -5 -5 -4 ------- Run | Yrd Mat Mat Min Mat Fac Fac Fac Ext Cet Arc Hub Fac Maximum Alert Level 2 | . . . . . . 1 . 1 1 1 2 1 Low Security (%) 84 | 100 100 100 100 100 100 97 100 74 7 70 72 52 Level 1 14 | . . . . . . 2 . 25 92 29 12 47 Level 2 . | . . . . . . . . . . . 15 . Level 3 . | . . . . . . . . . . . . . Level 4 . | . . . . . . . . . . . . . Level 5 . | . . . . . . . . . . . . . High Security . | . . . . . . . . . . . . . Max Security . | . . . . . . . . . . . . . Peak Influence 613 | 5 85 50 65 94 4 209 100 397 381 264 613 388 Initial 300 | . 3 14 9 5 . . 100 . 188 109 49 300 Average 86 | . 21 14 7 23 . 67 52 119 289 185 160 226 Influence Increases 5075 | 15 292 267 105 254 15 875 6 946 303 330 794 873 Destroy 0b10 Robot/C 2380 | . 160 160 80 60 . 420 . 620 160 80 280 360 Destroy 0b10 Robot/NC 275 | 15 40 25 . 40 . 70 . 15 5 45 . 20 Destroy Leader 406 | . 26 46 10 28 . 94 . 72 10 . 50 70 Allied During Kill 692 | . . . . . . 15 . 109 87 118 300 63 Successful Hack 175 | . 6 5 . . 6 63 6 25 7 . . 57 Disable Machine 315 | . . 30 . 15 . . . 15 30 45 75 105 Destroy Structure 367 | . . 1 . 6 9 33 . 30 4 42 74 168 Partial Spotted 60 | . . . . 15 . 15 . . . . . 30 Lose Combat Pursuer 405 | . 60 . 15 90 . 165 . 60 . . 15 . Influence Decreases 5002 | 10 263 277 115 268 15 668 213 610 366 462 322 1413 Entered New Map 870 | . 2 20 15 9 . . 107 . 148 164 92 313 Time Decay 3085 | 10 261 237 100 233 14 532 96 496 198 278 160 470 Lost Part 503 | . . 20 . 26 1 92 . 54 20 . 10 280 Lost Ally 244 | . . . . . . 44 10 60 . 20 60 50 Purge Threat 300 | . . . . . . . . . . . . 300 Squads Dispatched 34 | . . 1 . 2 1 13 . 6 1 . 3 7 Investigation 9 | . . . . 2 . 3 . 3 1 . . . Extermination 7 | . . . . . 1 4 . . . . . 2 Reinforcement 18 | . . 1 . . . 6 . 3 . . 3 5 Assault . | . . . . . . . . . . . . . Garrison . | . . . . . . . . . . . . . Intercept . | . . . . . . . . . . . . . Searches Triggered . | . . . . . . . . . . . . . Construction Impeded 2 | . . . . . . 1 . 1 . . . . Haulers Reinforced . | . . . . . . . . . . . . . Active Scanning Responses . | . . . . . . . . . . . . . Cargo Convoy Interrupts . | . . . . . . . . . . . . . Stealth | -11 -10 -9 -9 -8 -7 -6 -5 -5 -5 -5 -5 -4 --------- Run | Yrd Mat Mat Min Mat Fac Fac Fac Ext Cet Arc Hub Fac Distress Signals 10 | . 1 1 . 1 . 1 . 1 1 . 1 3 Communications Jammed . | . . . . . . . . . . . . . Distress Signals . | . . . . . . . . . . . . . Times Spotted 198 | . 16 17 8 15 . 39 . 34 9 20 13 27 Peak Tracking Total 9 | . 4 6 6 9 . 6 . 7 5 1 5 5 Tactical Retreats 17 | . 2 . 2 2 . 7 . 3 . . 1 . ECM-based Alert Blocks 1 | . . . . . . 1 . . . . . . Traps | -11 -10 -9 -9 -8 -7 -6 -5 -5 -5 -5 -5 -4 ------- Run | Yrd Mat Mat Min Mat Fac Fac Fac Ext Cet Arc Hub Fac Traps Triggered 19 | . 2 . . 3 . 6 . 8 . . . . Indirectly . | . . . . . . . . . . . . . Trap Hack Attempts . | . . . . . . . . . . . . . Triggered . | . . . . . . . . . . . . . Disarmed . | . . . . . . . . . . . . . Reprogrammed . | . . . . . . . . . . . . . Reused . | . . . . . . . . . . . . . Traps Extracted . | . . . . . . . . . . . . . Installed . | . . . . . . . . . . . . . Triggered . | . . . . . . . . . . . . . Machines | -11 -10 -9 -9 -8 -7 -6 -5 -5 -5 -5 -5 -4 ---------- Run | Yrd Mat Mat Min Mat Fac Fac Fac Ext Cet Arc Hub Fac Machines Disabled 25 | . . 2 . 1 . . . 3 4 3 5 7 Max in Single Turn 1 | . . 1 . 1 . . . 1 1 1 . 1 Garrison Access 3 | . . . . . . . 1 . . . 1 1 Network Hub 1 | . . . . . . . . . . . 1 . Machines Repaired . | . . . . . . . . . . . . . Machines Dismantled . | . . . . . . . . . . . . . Machines Sabotaged . | . . . . . . . . . . . . . Overloaded Fab Kills . | . . . . . . . . . . . . . Hacking | -11 -10 -9 -9 -8 -7 -6 -5 -5 -5 -5 -5 -4 --------- Run | Yrd Mat Mat Min Mat Fac Fac Fac Ext Cet Arc Hub Fac Machines Accessed 54 | . 5 2 . 5 2 15 4 9 2 . 1 9 Terminals 39 | . 5 2 . 3 1 8 2 9 2 . . 7 Fabricators 3 | . . . . . . 3 . . . . . . Repair Stations 2 | . . . . 1 1 . . . . . . . Recycling Units 2 | . . . . . . 1 . . . . . 1 Scanalyzers 4 | . . . . 1 . 2 1 . . . . . Garrison Access 4 | . . . . . . 1 1 . . . 1 1 Total Hacks 188 | . 16 6 . 16 4 50 16 18 6 . 4 52 Successful 90 | . 4 2 . 6 3 28 8 7 2 . 1 29 Failed 96 | . 12 4 . 9 1 21 8 11 4 . 3 23 Catastrophic 12 | . 1 . . 1 . 4 . 1 . . 1 4 Database Lockouts 2 | . . . . 1 . 1 . . . . . . Manual 57 | . 14 2 . 2 . 9 . . 1 . . 29 Terminals 131 | . 16 6 . 9 2 26 2 18 6 . . 46 Fabricators 7 | . . . . . . 7 . . . . . . Repair Stations 5 | . . . . 3 2 . . . . . . . Recycling Units 7 | . . . . . . 3 . . . . . 4 Scanalyzers 23 | . . . . 4 . 12 7 . . . . . Garrison Access 15 | . . . . . . 2 7 . . . 4 2 Terminal Hacks 51 | . 4 2 . 2 1 10 2 7 2 . . 21 Record 4 | . . . . . . . 1 1 2 . . . Part Schematic 2 | . 1 1 . . . . . . . . . . Robot Analysis 9 | . 2 . . . . 2 . . . . . 5 Prototype ID Bank 6 | . 1 . . . . 2 . . . . . 3 Open Door 7 | . . . . . . . 1 6 . . . . Level Access Points 2 | . . . . . . . . . . . . 2 Branch Access Points 2 | . . . . . . 1 . . . . . 1 Emergency Access Points 1 | . . . . . . . . . . . . 1 Terminal Index 2 | . . . . . . 1 . . . . . 1 Scanalyzer Index 1 | . . . . . . . . . . . . 1 Alert Level 3 | . . 1 . . . . . . . . . 2 Unreport Threat 2 | . . . . . . . . . . . . 2 Locate Traps 4 | . . . . 1 . 2 . . . . . 1 Hauler Manifests 1 | . . . . . . 1 . . . . . . Registered Components 4 | . . . . 1 1 1 . . . . . 1 Registered Prototypes 1 | . . . . . . . . . . . . 1 Fabricator Hacks 4 | . . . . . . 4 . . . . . . Network Status 1 | . . . . . . 1 . . . . . . Load Schematic 2 | . . . . . . 2 . . . . . . Build 1 | . . . . . . 1 . . . . . . Repair Station Hacks 3 | . . . . 1 2 . . . . . . . Scan Component 2 | . . . . 1 1 . . . . . . . Repair 1 | . . . . . 1 . . . . . . . Recycling Unit Hacks 3 | . . . . . . 1 . . . . . 2 Report Inventory 1 | . . . . . . . . . . . . 1 Retrieve Components 2 | . . . . . . 1 . . . . . 1 Scanalyzer 19 | . . . . 3 . 11 5 . . . . . Insert Component 4 | . . . . . . 4 . . . . . . Analyze 5 | . . . . . . 5 . . . . . . Retrieve Study 10 | . . . . 3 . 2 5 . . . . . Garrison Access Hacks 3 | . . . . . . . 1 . . . 1 1 Seal Access 3 | . . . . . . . 1 . . . 1 1 Unauthorized Hacks 7 | . . . . . . 2 . . . . . 5 Terminals 5 | . . . . . . 2 . . . . . 3 Assimilate 3 | . . . . . . 1 . . . . . 2 Operators 2 | . . . . . . 1 . . . . . 1 Fabricators . | . . . . . . . . . . . . . Repair Stations . | . . . . . . . . . . . . . Recycling Units 2 | . . . . . . . . . . . . 2 Reject 1 | . . . . . . . . . . . . 1 Mask 1 | . . . . . . . . . . . . 1 Scanalyzers . | . . . . . . . . . . . . . Garrison Access . | . . . . . . . . . . . . . Data Cores Recovered . | . . . . . . . . . . . . . Used . | . . . . . . . . . . . . . Hacking Detections 43 | . 5 2 . 5 2 13 2 5 2 . . 7 Full Trace Events 8 | . . . . 2 . 3 . 2 1 . . . Feedback Events 1 | . . . . . . 1 . . . . . . Corruption 1 | . . . . . . 1 . . . . . . Feedback Blocked . | . . . . . . . . . . . . . Robot Schematics Acquired . | . . . . . . . . . . . . . Robots Built 3 | . . . . . . 3 . . . . . . Authchips . | . . . . . . . . . . . . . Time 134 | . . . . . . 134 . . . . . . Total Robot Build Rating 12 | . . . . . . 12 . . . . . . Part Schematics Acquired 6 | . 1 1 . . . 4 . . . . . . Parts Built . | . . . . . . . . . . . . . Authchips . | . . . . . . . . . . . . . Time . | . . . . . . . . . . . . . Total Part Build Rating . | . . . . . . . . . . . . . Part Studies Acquired 10 | . . . . 3 . 2 5 . . . . . Parts Repaired 1 | . . . . . 1 . . . . . . . Time 38 | . . . . . 38 . . . . . . . Parts Recycled . | . . . . . . . . . . . . . Recycled Matter . | . . . . . . . . . . . . . Retrieved Matter . | . . . . . . . . . . . . . Retrieved Components 4 | . . . . . . 3 . . . . . 1 Parts Scanalyzed 4 | . . . . . . 4 . . . . . . Part Schematics Acquired 4 | . . . . . . 4 . . . . . . Parts Damaged . | . . . . . . . . . . . . . Bothacking | -11 -10 -9 -9 -8 -7 -6 -5 -5 -5 -5 -5 -4 ------------ Run | Yrd Mat Mat Min Mat Fac Fac Fac Ext Cet Arc Hub Fac Used RIF Installer . | . . . . . . . . . . . . . Robots Hacked . | . . . . . . . . . . . . . Non-combat . | . . . . . . . . . . . . . Combat . | . . . . . . . . . . . . . Robot Hacks Applied . | . . . . . . . . . . . . . Relay Couplers Released . | . . . . . . . . . . . . . Fabnet Peak Effective % . | . . . . . . . . . . . . . Robots Rewired 6 | . . . . . . . . 6 . . . . Allies Hacked 1 | . . . . . . 1 . . . . . . Hacks Repelled . | . . . . . . . . . . . . . Allies | -11 -10 -9 -9 -8 -7 -6 -5 -5 -5 -5 -5 -4 -------- Run | Yrd Mat Mat Min Mat Fac Fac Fac Ext Cet Arc Hub Fac Total Allies 24 | . . . . . . 4 . 14 5 . . 1 Largest Group 10 | . . . . . . 3 . 7 10 10 7 2 Highest-Rated Group 748 | . . . . . . 90 . 268 748 748 544 185 Highest-Rated Ally 159 | . . . . . . 30 . 159 159 159 96 96 Total Orders 15 | . . . . . . . 2 . . 2 11 . STAY 5 | . . . . . . . . . . 1 4 . FOLLOW 8 | . . . . . . . . . . 1 7 . EXPLORE 2 | . . . . . . . 2 . . . . . Ally Attacks 228 | . . . . . . 20 . 86 26 22 55 19 Total Damage 7336 | . . . . . . 570 . 2482 832 945 1965 542 Kills 54 | . . . . . . 5 . 17 8 5 15 4 Allies Corrupted 2 | . . . . . . . . . . . 1 1 Allies Melted 1 | . . . . . . . . . . . 1 . Intel | -11 -10 -9 -9 -8 -7 -6 -5 -5 -5 -5 -5 -4 ------- Run | Yrd Mat Mat Min Mat Fac Fac Fac Ext Cet Arc Hub Fac Active Infowar (turns) 8866 | 50 303 695 1680 815 381 1792 212 1528 . 125 317 968 Optics 209 | . . . . . . 209 . . . . . . Sensors 7381 | . . 159 1290 711 376 1698 212 1528 . 124 317 966 Terrain 1055 | . . 535 440 . . 78 . . . . . 2 Structural 2336 | . . . 1589 350 179 218 . . . . . . Seismic 657 | 50 303 265 39 . . . . . . . . . T.N.C. 141 | . . . . . . 141 . . . . . . Cloaking 54 | . . . . . . 54 . . . . . . Jamming 180 | . . . . . . . . . . . . 180 ECM 849 | . . . . 225 182 401 . . . 1 . 40 Robot Analysis Total 9 | . 2 . . . . 2 . . . . . 5 Derelict Logs Recovered 2 | . . . 2 . . . . . . . . . Drone Launches 2 | . . . . . . . 2 . . . . . Drone Recoveries . | . . . . . . . . . . . . . Exploration | -11 -10 -9 -9 -8 -7 -6 -5 -5 -5 -5 -5 -4 ------------- Run | Yrd Mat Mat Min Mat Fac Fac Fac Ext Cet Arc Hub Fac Turns Passed 11776 | 114 970 857 1680 815 381 2231 212 1975 415 609 333 1184 Spaces Moved 7714 | 57 476 406 677 631 273 1806 330 891 133 364 414 1256 Core 17 | 3 . . . . . . . . . . . 14 Treads 1584 | 54 476 346 677 31 . . . . . . . . Legs 938 | . . . . 147 . . . 647 133 11 . . Wheels 1085 | . . 60 . . . 1024 . . . . . 1 Hover 4089 | . . . . 453 273 781 330 244 . 353 414 1241 Flight 1 | . . . . . . 1 . . . . . . Fastest Speed 40 | 50 160 115 160 48 112 48 52 52 190 44 44 40 Average Speed 98 | 155 160 161 160 92 112 78 52 135 190 94 44 43 Slowest Speed 450 | 160 160 240 240 310 112 435 52 330 190 190 100 450 Overloaded Moves . | . . . . . . . . . . . . . Propulsion Burnouts . | . . . . . . . . . . . . . Robots Hopped . | . . . . . . . . . . . . . Potential Cave-ins . | . . . . . . . . . . . . . Cave-ins Triggered 2 | . . . . . 1 . . . . . . 1 Exploration Rate (%) 47 | 4 78 31 98 48 7 46 13 83 71 94 24 24 Regions Visited 12 Branch Regions 5 Pre-discovered Areas . | . . . . . . . . . . . . . Known Exits Taken 7 | . . . . 1 1 . 1 1 1 1 1 . Unknown Exits Taken 5 | 1 1 1 1 . . 1 . . . . . . Scrap Searched 3 | . . . 3 . . . . . . . . . Spaces Dug 73 | . . . . 5 10 33 . 7 . . 1 17 Terrain Destroyed 122 | . . . . 5 10 33 . 11 . 18 10 35 Melee 66 | . . . . 5 10 33 . . . . 1 17 Projectile 44 | . . . . . . . . 11 . 18 9 6 AOE 12 | . . . . . . . . . . . . 12 Terrain Rammed . | . . . . . . . . . . . . . Walls Destroyed . | . . . . . . . . . . . . . Machines Disabled . | . . . . . . . . . . . . . Actions | -11 -10 -9 -9 -8 -7 -6 -5 -5 -5 -5 -5 -4 --------- Run | Yrd Mat Mat Min Mat Fac Fac Fac Ext Cet Arc Hub Fac Total 11047 | 70 580 529 1253 815 331 2443 365 1494 291 568 540 1768 Wait 2069 | . 22 33 559 80 39 307 18 298 145 132 102 334 Move 7702 | 56 475 405 676 630 272 1805 329 890 132 363 413 1256 Hop . | . . . . . . . . . . . . . Pick Up 130 | 2 12 14 2 11 2 38 5 20 1 7 1 15 Fast Attach 145 | 7 4 7 1 16 2 31 1 16 3 7 2 48 Attach 63 | . 1 3 2 6 3 17 4 10 1 3 1 12 Detach 48 | . 1 4 . 11 1 13 1 8 2 3 . 4 Swap 96 | 1 4 7 5 4 2 29 . 14 1 11 6 12 Drop 164 | . 6 15 . 21 . 50 4 28 2 12 4 22 Fire 298 | 4 55 39 8 26 . . . 101 4 29 8 24 Melee 184 | . . 2 . 10 10 114 3 . . 1 3 41 Ram . | . . . . . . . . . . . . . Kick . | . . . . . . . . . . . . . Crush . | . . . . . . . . . . . . . Escape Stasis 94 | . . . . . . 39 . 55 . . . . Rewire 54 | . . . . . . . . 54 . . . . Trap . | . . . . . . . . . . . . . Miscellaneous . | . . . . . . . . . . . . . Route ------- -11/Scrapyard -10/Materials (discovered 4 exits: *Mat x3 / [*Min]) -9/Materials (discovered 2 exits: *Mat / [*Min]) -9/Mines (discovered 2 exits: *Mat x2) -8/Materials (discovered 3 exits: *Fac x3) -7/Factory (discovered 2 exits: *Fac / [*Low]) -6/Factory (discovered 3 exits: *Fac / Low x2) -5/Factory -5/Extension (discovered 2 exits: *Fac / *Cet) -5/Cetus -5/Archives (discovered 3 exits: *Fac / *Hub x2) -5/Hub_04(d) (discovered 2 exits: *Fac x2) -4/Factory (discovered 7 exits: Res x4 / Upp x2 / Arm) History --------- Turn | Location | Event 41 | -11/Scrapyard | Discovered new exit (range 15) 115 | -11/Scrapyard | Entered Materials 303 | -10/Materials | Build established: Mutant 321 | -10/Materials | Discovered new exit (range 16) 488 | -10/Materials | Discovered new exit (range 10) 738 | -10/Materials | Discovered new exit (range 7) 1056 | -10/Materials | Discovered new exit (range 9) 1085 | -10/Materials | Entered another Materials area 1085 | -9/Materials | Evolved 2 slots: Utility x2 1711 | -9/Materials | Build established: Hacker-Mutant 1715 | -9/Materials | Discovered new exit (range 6) 1876 | -9/Materials | Discovered new exit (range 15) 1942 | -9/Materials | Entered Mines 2130 | -9/Mines | Assembled infested the area 2135 | -9/Mines | Assisted by a Guerilla fighting off Assembled 2265 | -9/Mines | Build established: Mutant 2275 | -9/Mines | Lost 3 parts (1n1u1w) 2308 | -9/Mines | Discovered new exit (range 13) 2310 | -9/Mines | Learned 8 Materials zone layouts 2417 | -9/Mines | Found a damaged Exp. Sensor Array with a note attached 2420 | -9/Mines | Found Prototype Device 2421 | -9/Mines | Identified Exp. Sensor Array 2469 | -9/Mines | Discovered new exit (range 14) 2473 | -9/Mines | A Derelict revealed a hidden shortcut to a safe place 3588 | -9/Mines | Core integrity fell below 50% 3622 | -9/Mines | Entered Materials 3622 | -8/Materials | Evolved 2 slots: Propulsion x2 3623 | -8/Materials | Identified exit to Factory 4233 | -8/Materials | Central database locked down 4437 | -8/Materials | Entered Factory 4437 | -7/Factory | Evolved 2 slots: Utility x2 4486 | -7/Factory | Discovered new exit (range 12) 4582 | -7/Factory | Repaired Airjet 4738 | -7/Factory | Crushed by falling debris 4778 | -7/Factory | Discovered new exit (range 5) 4817 | -7/Factory | Identified exit to Factory 4818 | -7/Factory | Entered another Factory area 4818 | -6/Factory | Evolved 2 slots: Propulsion x1, Utility x1 4984 | -6/Factory | Identified exit to Lower Caves 5036 | -6/Factory | Fabricated L-41 Fighter? 5043 | -6/Factory | System corruption reached 10% 5073 | -6/Factory | Lost 10 parts (1p3n5u1w) 5190 | -6/Factory | Central database locked down 5700 | -6/Factory | Build established: Scavenger-Mutant 6237 | -6/Factory | Lost 3 parts (1p2n) 6796 | -6/Factory | Spotted B-75 Beast 7011 | -6/Factory | Discovered new exit (range 9) 7049 | -6/Factory | Entered another Factory area 7049 | -5/Factory | Evolved 2 slots: Utility x2 7195 | -5/Factory | Build established: Hacker-Mutant 7214 | -5/Factory | Discovered new exit (range 6) 7260 | -5/Factory | Identified exit to Extension 7261 | -5/Factory | Entered Extension 7394 | -5/Extension | Rescued a captive Derelict 7518 | -5/Extension | Rescued a captive Derelict 7615 | -5/Extension | Lost 3 parts (2u1w) 7672 | -5/Extension | Rescued a captive Derelict 7690 | -5/Extension | Rescued a captive Derelict 7690 | -5/Extension | Rescued a captive Derelict 8120 | -5/Extension | Spotted B-75 Beast 8138 | -5/Extension | Allies destroyed B-75 Beast 8140 | -5/Extension | Spotted B-75 Beast 8154 | -5/Extension | Destroyed B-75 Beast 8182 | -5/Extension | Build established: Scavenger-Mutant 8202 | -5/Extension | Lost 7 allies 8497 | -5/Extension | Rescued A7 8587 | -5/Extension | Rescued a captive Derelict 8587 | -5/Extension | Rescued a captive Derelict 8954 | -5/Extension | Discovered new exit (range 10) 8956 | -5/Extension | Discovered new exit (range 6) 8978 | -5/Extension | Found Prototype Launcher 8978 | -5/Extension | Identified Tesla Bomb Launcher 8990 | -5/Extension | Identified exit to Cetus 9185 | -5/Extension | Identified exit to Factory 9236 | -5/Extension | Entered Cetus 9236 | -5/Cetus | Accompanied by 5 allies (A7) 9241 | -5/Cetus | Acquired a Cetus Manufacturing Module code from A7 9260 | -5/Cetus | Spotted Cetus Guard 9260 | -5/Cetus | Spotted Cetus Guard 9263 | -5/Cetus | Spotted Cetus Guard 9264 | -5/Cetus | Spotted Cetus Guard 9266 | -5/Cetus | Allies destroyed Cetus Guard 9275 | -5/Cetus | Allies destroyed Cetus Guard 9286 | -5/Cetus | Allies destroyed Cetus Guard 9286 | -5/Cetus | Allies destroyed Cetus Guard 9404 | -5/Cetus | Door terminal overloaded 9435 | -5/Cetus | Started Cetus Manufacturing Module 9450 | -5/Cetus | Escorted A7 to Cetus Mainframe 9460 | -5/Cetus | Manufactured an Enhanced Grunt 9485 | -5/Cetus | Manufactured an Enhanced Grunt 9487 | -5/Cetus | Discovered new exit (range 16) 9510 | -5/Cetus | Manufactured an Enhanced Grunt 9513 | -5/Cetus | Identified exit to Archives 9535 | -5/Cetus | Manufactured an Enhanced Grunt 9560 | -5/Cetus | Manufactured an Enhanced Grunt 9651 | -5/Cetus | Entered Archives 9651 | -5/Archives | Accompanied by 10 allies (A7) 9656 | -5/Archives | Received a hacking code to weaken MAIN.C 9703 | -5/Archives | Unable to access archive contents 9717 | -5/Archives | Unable to access archive contents 9755 | -5/Archives | Discovered exit to Factory (range 15) 9789 | -5/Archives | System corruption reached 10% 9806 | -5/Archives | Discovered new exit (range 15) 9820 | -5/Archives | Identified exit to Hub_04(d) 9861 | -5/Archives | Discovered exit to Hub_04(d) (range 14) 10260 | -5/Archives | Entered Hub_04(d) 10260 | -5/Hub_04(d) | Accompanied by 7 allies 10293 | -5/Hub_04(d) | Discovered exit to Factory (range 3) 10421 | -5/Hub_04(d) | Network Hub disabled 10517 | -5/Hub_04(d) | Discovered exit to Factory (range 8) 10593 | -5/Hub_04(d) | Entered Factory 10593 | -4/Factory | Accompanied by 2 allies 10593 | -4/Factory | Evolved 2 slots: Power x1, Propulsion x1 10600 | -4/Factory | Lost 3 allies 10630 | -4/Factory | Identified exit to Upper Caves 10630 | -4/Factory | Identified exit to Armory 11110 | -4/Factory | Identified exit to Research 11150 | -4/Factory | Watched by a mysterious "MATRIX" hacker 11237 | -4/Factory | Build established: Wizard-Mutant 11569 | -4/Factory | Crushed by falling debris 11569 | -4/Factory | System corruption reached 10% 11628 | -4/Factory | Core integrity fell below 50% 11658 | -4/Factory | Lost 15 parts (1p4n7u3w) 11684 | -4/Factory | Released all parts (6) 11692 | -4/Factory | System corruption reached 30% 11694 | -4/Factory | Core integrity fell below 20% 11764 | -4/Factory | Lost 10 parts (2p3n2u3w) 11777 | -4/Factory | Destroyed by H-71 Marshal with Heavy Mass Driver Last Messages --------------- 11752_ Acquired Corrupted Mic. Fission Core. 11752_ Integrated Corrupted Mic. Fission Core (+6). 11753_ U-05 Engineer lays Concrete. 11754_ Acquired Corrupted Antigrav System. 11754_ Integrated Corrupted Antigrav System (+7). 11755_ U-05 Engineer lays Concrete. 11757_ Acquired Corrupted Lrg. Storage Unit. 11757_ Integrated Corrupted Lrg. Storage Unit (+8). 11758_ System corrupted: Matter fused (-8). 11761_ Acquired Imp. Surge Thruster. 11762_ Dropped Corrupted Imp. Hacking Suite. 11765_ Acquired Mic. Nuclear Core. 11766_ Acquired 16 matter. 11768_ P-70 Sage heat spikes uncontrollably. 11770_ K-01 Serf cleans the Power Conduit. 11770_ Antigrav System destroyed. 11773_ Knocked back. 11773_ Antigrav System destroyed. 11774_ System corrupted: Imp. Surge Thruster rejected. 11774_ Dropped Lrg. Storage Unit. Map ----- +----------------------------------------------------+ | ??!?????????????????????????????????????????????# | | ?????????????????????????????????????????#####??# | | ?????????????????????????????????????????# ! ?# | | ?????????????????????????????????????????# ?# | | ?????????????????????????????????????????# """ # | | ?????????????????????????????????# ??????# """ # | | ?????????????????????????????????# ??????# """ + | | ?????????????????????????????????# ??????# # | | ?????????????????????????????????# ???########### | | ?????????????????????????????????# ####T ###### | | ??????????????????????? ???????# | | ????????????????????? " ???????# T | | ??????????????????" " " #??????# | | ????????????????? " " " +?????# ######### | | ????????????????? ####### # ]%!=/#### | | ????????????????? " x x # !! =#??? | | ????????????????" " #=! = !#??? | | ????????????????" " + !%/]#??? | | ????????????????" " # ![! #??? | | ????????????????" " #!!%|= #??? | | ??????????????? " " ###########??? | | ??????????????? " " ## ####?????? | | ?????????????? " " p # = % =##????? | | ?????????? " " |!! # ! =##????? | | ?????????H k !!! % # =##????? | | ?????????? !! @ * #= #?????? | | ?????????? != u ! #?????? | | ?????????? ! # u! #?????? | | ???????????###########+## # # ##?????? | | ????????????????????????# #####??????? | | ????????????????????????# u#??????????? | | ????????????????????????# u ?????????? | | ????????????????????????# ???????? | | ????????????????????????# """" """ ??????? | | ????????????????????????# """" """ ??????? | | ????????????????????????# """" """ """??????? | | ????????????????????????# """? ""? "????????? | | ????????????????????????# "??? ???? "????????? | | ????????????????????????# "??? ???????????????? | | ???????????????????????? "??? ???????????????? | | ???????????????????????? ?????????????????????? | | ????????????????????????? ?????????????????????? | | ?????????????????????????????????????????????????? | | ?????